fUSD/lending_fUSD_20241209
["ID","MTS","AMOUNT","RATE_DAILY","PERIOD"]
[344721219,1733737867331,-151.0,0.00012399,2]
[344721220,1733737867340,-151.0,0.00012399,2]
[344721221,1733737867350,-650.509915,0.00012399,2]
[344721222,1733737867359,-799.623508,0.00012399,2]
[344721223,1733737867368,-799.623508,0.00012399,2]
[344721224,1733737867378,-650.509915,0.00012399,2]
[344721225,1733737867387,-650.509915,0.00012399,2]
[344721226,1733737867397,-609.134789,0.00012399,2]
[344721227,1733737867407,-609.134789,0.00012399,2]
[344721228,1733737867417,-609.134789,0.00012399,2]
[344721229,1733737867427,-151.0,0.00012399,2]
[344721230,1733737867437,-295.61237,0.00012399,2]
[344721231,1733737867446,-650.509915,0.00012399,2]
[344721232,1733737867456,-650.509915,0.00012399,2]
[344721233,1733737867469,-650.509917,0.00012399,2]
[344721234,1733737867479,-609.134789,0.00012399,2]
[344721235,1733737867489,-609.134789,0.00012399,2]
[344721236,1733737867499,-609.134789,0.00012399,2]
[344721237,1733737867509,-2410.856862,0.00012399,2]
[344721238,1733737867519,-2410.856862,0.00012399,2]
[344721239,1733737867529,-2410.856862,0.00012399,2]
[344721240,1733737867540,-2410.856862,0.00012399,2]
[344721241,1733737867552,-329.792693,0.00012399,2]
[344721242,1733737867562,-329.792693,0.00012399,2]
[344721243,1733737867572,-329.792693,0.00012399,2]
[344721244,1733737867582,-151.0,0.00012399,2]
[344721245,1733737867593,-151.0,0.00012399,2]
[344721246,1733737867604,-329.792693,0.00012399,2]
[344721247,1733737867615,-151.0,0.00012399,2]
[344721248,1733737867624,-329.792693,0.00012399,2]
[344721249,1733737867634,-329.792693,0.00012399,2]
[344721250,1733737867644,-253.790898,0.00012399,2]
[344721251,1733737867654,-253.790898,0.00012399,2]
[344721252,1733737867663,-253.790898,0.00012399,2]
[344721253,1733737867673,-253.790901,0.00012399,2]
[344721254,1733737867682,-1099.501311,0.00012399,2]
[344721255,1733737867692,-1099.501311,0.00012399,2]
[344721256,1733737867701,-1099.501311,0.00012399,2]
[344721257,1733737867712,-1099.501302,0.00012399,2]
[344721258,1733737867721,-632.07196,0.00012399,2]
[344721259,1733737867731,-632.07196,0.00012399,2]
[344721260,1733737867740,-632.07196,0.00012399,2]
[344721261,1733737867750,-632.071957,0.00012399,2]
[344721262,1733737867759,-151.0,0.00012399,2]
[344721263,1733737867768,-151.0,0.00012399,2]
[344721264,1733737867778,-394.463459,0.00012399,2]
[344721265,1733737867787,-394.463459,0.00012399,2]
[344721266,1733737867797,-394.463459,0.00012399,2]
[344721267,1733737867806,-394.463458,0.00012399,2]
[344721268,1733737867815,-363.123261,0.00012399,2]
[344721269,1733737867824,-363.123261,0.00012399,2]
[344721270,1733737867834,-363.123261,0.00012399,2]
[344721271,1733737867843,-363.123259,0.00012399,2]
[344721272,1733737867852,-266.301494,0.00012399,2]
[344721273,1733737867861,-266.301494,0.00012399,2]
[344721274,1733737867873,-266.301494,0.00012399,2]
[344721275,1733737867883,-266.301486,0.00012399,2]
[344721276,1733737867893,-270.046671,0.00012399,2]
[344721277,1733737867903,-270.046671,0.00012399,2]
[344721278,1733737867913,-270.046671,0.00012399,2]
[344721279,1733737867923,-270.046674,0.00012399,2]
[344721280,1733737867933,-600.176389,0.00012399,2]
[344721281,1733737867943,-600.176389,0.00012399,2]
[344721282,1733737867953,-600.176389,0.00012399,2]
[344721283,1733737867964,-600.176393,0.00012399,2]
[344721284,1733737867973,-4313.202551,0.00012399,2]
[344721285,1733737867983,-4313.202551,0.00012399,2]
[344721286,1733737867993,-4313.202551,0.00012399,2]
[344721287,1733737868002,-4313.202548,0.00012399,2]
[344721288,1733737868012,-759.065237,0.00012399,2]
[344721289,1733737868021,-759.065237,0.00012399,2]
[344721290,1733737868031,-759.065237,0.00012399,2]
[344721291,1733737868041,-759.065232,0.00012399,2]
[344721292,1733737868050,-248.878348,0.00012399,2]
[344721293,1733737868061,-248.878348,0.00012399,2]
[344721294,1733737868071,-248.878348,0.00012399,2]
[344721295,1733737868080,-248.878341,0.00012399,2]
[344721296,1733737868091,-745.781467,0.00012399,2]
[344721297,1733737868100,-745.781467,0.00012399,2]
[344721298,1733737868109,-745.781467,0.00012399,2]
[344721299,1733737868119,-745.78146,0.00012399,2]
[344721300,1733737868129,-6665.361462,0.00012399,2]
[344721301,1733737868139,-6665.361462,0.00012399,2]
[344721302,1733737868150,-6665.361462,0.00012399,2]
[344721303,1733737868160,-6665.361464,0.00012399,2]
[344721304,1733737868170,-442.471355,0.00012399,2]
[344721305,1733737868180,-442.471355,0.00012399,2]
[344721306,1733737868190,-687.121863,0.00012399,2]
[344721307,1733737868200,-442.471355,0.00012399,2]
[344721308,1733737868211,-442.471363,0.00012399,2]
[344721309,1733737868222,-687.121866,0.00012399,2]
[344721310,1733737868231,-151.0,0.00012399,2]
[344721311,1733737868242,-151.0,0.00012399,2]
[344721312,1733737868252,-1564.730391,0.00012399,2]
[344721313,1733737868262,-291.252832,0.00012399,2]
[344721314,1733737868272,-291.252832,0.00012399,2]
[344721315,1733737868283,-1564.730384,0.00012399,2]
[344721316,1733737868293,-291.252832,0.00012399,2]
[344721317,1733737868303,-291.252842,0.00012399,2]
[344721318,1733737868313,-173.28169,0.00012399,2]
[344721319,1733737868323,-173.28169,0.00012399,2]
[344721320,1733737868334,-10000.0,0.00012399,2]
[344721321,1733737868344,-10000.0,0.00012399,2]
[344721322,1733737868355,-173.28169,0.00012399,2]
[344721323,1733737868364,-173.281694,0.00012399,2]
[344721324,1733737868375,-10000.0,0.00012399,2]
[344721325,1733737868385,-10000.0,0.00012399,2]
[344721326,1733737868394,-10000.0,0.00012399,2]
[344721327,1733737868404,-10000.0,0.00012399,2]
[344721328,1733737868413,-10000.0,0.00012399,2]
[344721329,1733737868425,-10000.0,0.00012399,2]
[344721330,1733737868435,-10000.0,0.00012399,2]
[344721331,1733737868444,-10000.0,0.00012399,2]
[344721332,1733737868455,-8109.65076,0.00012399,2]
[344721333,1733737868465,-151.0,0.00012399,2]
[344721334,1733737868535,-422.285094,0.00012399,2]
[344721335,1733737868546,-422.285094,0.00012399,2]
[344721336,1733737868556,-422.285094,0.00012399,2]
[344721337,1733737868565,-422.285099,0.00012399,2]
[344721338,1733737868574,-1625.781547,0.00012399,2]
[344721339,1733737868585,-1625.781547,0.00012399,2]
[344721340,1733737868594,-1625.781547,0.00012399,2]
[344721341,1733737868603,-1625.781545,0.00012399,2]
[344721342,1733737868613,-726.657548,0.00012399,2]
[344721343,1733737868623,-726.657548,0.00012399,2]
[344721344,1733737868633,-216.934781,0.00012399,2]
[344721345,1733737868643,-216.934781,0.00012399,2]
[344721346,1733737868652,-726.657548,0.00012399,2]
[344721347,1733737868661,-726.657549,0.00012399,2]
[344721348,1733737868670,-216.934781,0.00012399,2]
[344721349,1733737868680,-216.934776,0.00012399,2]
[344721350,1733737868689,-373.097525,0.00012399,2]
[344721351,1733737868698,-373.097525,0.00012399,2]
[344721352,1733737868708,-373.097525,0.00012399,2]
[344721353,1733737868720,-373.097525,0.00012399,2]
[344721354,1733737868730,-442.521793,0.00012399,2]
[344721355,1733737868740,-442.521793,0.00012399,2]
[344721356,1733737868750,-1000.0,0.00012425,2]
[344721357,1733737868759,-915.5,0.00012465,2]
[344721358,1733737868769,-776.68,0.00012482,2]
[344721359,1733737868778,-293.19449665,0.000125,2]
[344721360,1733737868788,-151.0,0.000126,2]
[344721361,1733737868798,-799.623502,0.000126,2]
[344721362,1733737868807,-915.5,0.00012602,2]
[344721363,1733737868816,-1858.94,0.0001261,2]
[344721364,1733737868826,-73438.35497563,0.000127,2]
[344721365,1733737868835,-331.964839,0.000127,2]
[344721366,1733737868845,-331.964831,0.000127,2]
[344721367,1733737868855,-437.510945,0.000127,2]
[344721368,1733737868864,-437.51094,0.000127,2]
[344721369,1733737868874,-818.470456,0.000127,2]
[344721370,1733737868883,-162.501073,0.000127,2]
[344721371,1733737868892,-151.0,0.000127,2]
[344721372,1733737868902,-818.470466,0.000127,2]
[344721373,1733737868911,-162.501082,0.000127,2]
[344721374,1733737868921,-332.301593,0.000127,2]
[344721375,1733737868930,-332.301593,0.000127,2]
[344721376,1733737868940,-609.134789,0.000127,2]
[344721377,1733737868951,-609.134781,0.000127,2]
[344721378,1733737868963,-2410.856862,0.000127,2]
[344721379,1733737868972,-2410.856862,0.000127,2]
[344721380,1733737868982,-329.792693,0.000127,2]
[344721381,1733737868992,-170.055581,0.000127,2]
[344721382,1733737869002,-329.792694,0.000127,2]
[344721383,1733737869012,-915.5,0.00012739,2]
[344721384,1733737869022,-479.241674,0.000128,2]
[344721385,1733737869031,-479.241676,0.000128,2]
[344721386,1733737869041,-1102.379002,0.000128,2]
[344721387,1733737869050,-3885.261581,0.000128,2]
[344721388,1733737869060,-1102.379003,0.000128,2]
[344721389,1733737869069,-3885.261572,0.000128,2]
[344721390,1733737869078,-915.5,0.00012876,2]
[344721391,1733737869088,-796.516985,0.000129,2]
[344721392,1733737869098,-391.68929,0.000129,2]
[344721393,1733737869107,-391.68929,0.000129,2]
[344721394,1733737869117,-151.0,0.000129,2]
[344721395,1733737869126,-151.0,0.000129,2]
[344721396,1733737869136,-151.0,0.000129,2]
[344721397,1733737869145,-769.12840934,0.000129,2]
[344721398,1733737869154,-166.256592,0.00012902,2]
[344721399,1733737869164,-166.256592,0.00012902,2]
[344721400,1733737869173,-12868.17949093,0.00012902,2]
[344721401,1733737869182,-483.71,0.00012959,2]
[344721402,1733737869192,-563.0,0.00012959,2]
[344721403,1733737869202,-456.049,0.00012959,2]
[344721404,1733737869213,-150.0,0.00012959,2]
[344721405,1733737869223,-150.0,0.00012959,2]
[344721406,1733737869233,-150.0,0.00012959,2]
[344721407,1733737869242,-150.0,0.00012959,2]
[344721408,1733737869252,-298.7841985,0.00012991,2]
[344721409,1733737869262,-5223.1417381,0.00012991,2]
[344721410,1733737869271,-601324.08010149,0.00013,2]
[344721411,1733737869280,-3613.97121289,0.00013,2]
[344721412,1733737869579,-7216.88342252,0.00013,2]
[344721413,1733737869591,-4928.55,0.00013,2]
[344721435,1733738321184,-200.0,0.000214,120]
[344721436,1733738321222,-1000.0,0.00021917,120]
[344721437,1733738321245,-1000.0,0.00021917,120]
[344721438,1733738321267,-183.61528112,0.00021917,120]
[344721439,1733738321292,-7616.38471888,0.00022,120]
[344721447,1733738862176,-611.0,0.00016658,30]
[344721448,1733738862223,-611.0,0.00019242,30]
[344721449,1733738862246,-14000.0,0.000195,30]
[344721459,1733738984533,549.9,0.00016658,30]
[344721460,1733738984752,549.9,0.00019242,30]
[344721467,1733739032595,-151.51,7.85e-05,2]
[344721468,1733739032608,-264.49002,8.219e-05,2]
[344721469,1733739032619,-329.14260328,8.219e-05,2]
[344721470,1733739032631,-6082.74689275,8.219e-05,2]
[344721471,1733739032641,-1630.15,8.219e-05,2]
[344721472,1733739032651,-164.78,8.442e-05,2]
[344721473,1733739032660,-1056.0,9.336e-05,2]
[344721474,1733739032669,-150.0,9.688e-05,2]
[344721475,1733739032679,-300.0,9.798e-05,2]
[344721476,1733739032688,-8225.0,9.799e-05,2]
[344721477,1733739032697,-150.0,9.799e-05,2]
[344721478,1733739032707,-36964.5683,9.8e-05,2]
[344721480,1733739032716,-1000.0,9.8e-05,2]
[344721482,1733739032725,-1056.0,9.827e-05,2]
[344721484,1733739032734,-404.21,9.886e-05,2]
[344721485,1733739032743,-500.0,9.899e-05,2]
[344721487,1733739032753,-500.0,9.899e-05,2]
[344721489,1733739032762,-500.0,9.899e-05,2]
[344721491,1733739032772,-500.0,9.899e-05,2]
[344721493,1733739032781,-181.28294401,9.899e-05,2]
[344721495,1733739032790,-1500.0,9.918e-05,2]
[344721497,1733739032799,-23900.0,9.953e-05,2]
[344721499,1733739032808,-150.747,9.959e-05,2]
[344721500,1733739032818,-500.0,9.988e-05,2]
[344721502,1733739032827,-500.0,9.988e-05,2]
[344721504,1733739032838,-500.0,9.996e-05,2]
[344721506,1733739032847,-258.8015022,9.996e-05,2]
[344721508,1733739032858,-500.0,9.996e-05,2]
[344721510,1733739032867,-500.0,9.996e-05,2]
[344721511,1733739032876,-500.0,9.998e-05,2]
[344721512,1733739032886,-500.0,9.998e-05,2]
[344721513,1733739032895,-500.0,9.998e-05,2]
[344721514,1733739032905,-500.0,9.999e-05,2]
[344721515,1733739032917,-500.0,9.999e-05,2]
[344721516,1733739032926,-500.0,9.999e-05,2]
[344721517,1733739032936,-500.0,9.999e-05,2]
[344721518,1733739032946,-500.0,9.999e-05,2]
[344721519,1733739032956,-155.59669131,9.999e-05,2]
[344721520,1733739032965,-150.0,0.00010259,2]
[344721521,1733739032975,-166.67,0.00010266,2]
[344721522,1733739032984,-250.0,0.00010299,2]
[344721523,1733739032993,-1056.0,0.00010345,2]
[344721524,1733739033002,-11122.67,0.00010369,2]
[344721525,1733739033012,-150.0,0.00010393,2]
[344721527,1733739033021,-1630.15,0.00010463,2]
[344721528,1733739033031,-1000.0,0.00010611,2]
[344721530,1733739033041,-200.0,0.00010727,2]
[344721532,1733739033050,-420.0,0.00010778,2]
[344721534,1733739033060,-1533.751,0.000108,2]
[344721549,1733739033306,-175.144,0.000108,2]
[344721550,1733739033316,-37115.0,0.00010889,2]
[344721551,1733739033326,-1056.0,0.00010889,2]
[344721552,1733739033335,-800.0,0.00010959,2]
[344721553,1733739033345,-800.0,0.00010959,2]
[344721554,1733739033355,-800.0,0.00010959,2]
[344721555,1733739033365,-800.0,0.00010959,2]
[344721556,1733739033375,-800.0,0.00010959,2]
[344721557,1733739033384,-800.0,0.00010959,2]
[344721558,1733739033394,-150.0,0.00010959,2]
[344721559,1733739033403,-230.0,0.000111,2]
[344721560,1733739033413,-364.0,0.000111,2]
[344721561,1733739033422,-881.16,0.00011321,2]
[344721562,1733739033431,-200.0,0.00011408,2]
[344721563,1733739033440,-1056.0,0.00011462,2]
[344721564,1733739033450,-2751.0,0.00011507,2]
[344721565,1733739033459,-587.0,0.00011855,2]
[344721566,1733739033468,-1000.0,0.00011938,2]
[344721567,1733739033478,-1056.0,0.00012066,2]
[344721568,1733739033487,-1000.0,0.000122,2]
[344721569,1733739033496,-500.0,0.00012328,2]
[344721570,1733739033506,-500.0,0.00012328,2]
[344721571,1733739033515,-500.0,0.00012328,2]
[344721572,1733739033525,-500.0,0.00012328,2]
[344721573,1733739033534,-500.0,0.00012328,2]
[344721574,1733739033543,-500.0,0.00012328,2]
[344721575,1733739033553,-500.0,0.00012328,2]
[344721576,1733739033562,-500.0,0.00012328,2]
[344721577,1733739033572,-500.0,0.00012328,2]
[344721578,1733739033582,-500.0,0.00012328,2]
[344721579,1733739033592,-500.0,0.00012328,2]
[344721580,1733739033601,-500.0,0.00012328,2]
[344721581,1733739033612,-171.857638,0.00012328,2]
[344721582,1733739033623,-500.0,0.00012328,2]
[344721583,1733739033633,-500.0,0.00012328,2]
[344721584,1733739033643,-500.0,0.00012328,2]
[344721585,1733739033654,-95549.9,0.00012329,2]
[344721586,1733739033664,-346.791,0.0001235,2]
[344721587,1733739033674,-435.74,0.00012399,2]
[344721588,1733739033685,-871.48,0.00012399,2]
[344721589,1733739033695,-435.38,0.00012399,2]
[344721590,1733739033705,-203.8642965,0.00012399,2]
[344721591,1733739033715,-75595.0,0.00012478,2]
[344721592,1733739033724,-1056.0,0.00012701,2]
[344721593,1733739033734,-1630.15,0.00012708,2]
[344721594,1733739033743,-428.04992712,0.00012718,2]
[344721595,1733739033753,-881.16,0.00012736,2]
[344721596,1733739033763,-500.0,0.00012804,2]
[344721597,1733739033773,-500.0,0.00012804,2]
[344721598,1733739033783,-500.0,0.00012804,2]
[344721599,1733739033793,-407.8398205,0.00012804,2]
[344721600,1733739033803,-500.0,0.00012804,2]
[344721601,1733739033813,-369.81466169,0.00012804,2]
[344721602,1733739033823,-500.0,0.00012804,2]
[344721603,1733739033834,-533.62858797,0.00012804,2]
[344721604,1733739033845,-500.0,0.00012804,2]
[344721605,1733739033855,-195.63841192,0.00012804,2]
[344721606,1733739033867,-594.93,0.00012804,2]
[344721607,1733739033878,-500.0,0.00012804,2]
[344721608,1733739033888,-500.92210253,0.00012804,2]
[344721609,1733739033898,-500.0,0.00012804,2]
[344721610,1733739033912,-500.0,0.00012804,2]
[344721611,1733739033922,-500.0,0.00012804,2]
[344721612,1733739033932,-500.0,0.00012804,2]
[344721613,1733739033942,-500.0,0.00012804,2]
[344721614,1733739033953,-500.0,0.00012804,2]
[344721615,1733739033963,-210.06387272,0.00012804,2]
[344721616,1733739033973,-500.0,0.00012804,2]
[344721617,1733739033983,-20819.60871846,0.00012805,2]
[344721618,1733739033994,-3000.0,0.0001287,2]
[344721619,1733739034004,-4132.18807551,0.00012893,2]
[344721620,1733739034014,-4132.18807551,0.00012897,2]
[344721621,1733739034025,-221.0,0.00012898,3]
[344721622,1733739034036,-221.72676572,0.00012898,2]
[344721623,1733739034047,-16102.40522124,0.000129,2]
[344721624,1733739034057,-384.56420467,0.000129,2]
[344721625,1733739034066,-203.86429649,0.000129,2]
[344721626,1733739034076,-4132.18807551,0.000129,2]
[344721627,1733739034086,-11151.5089914,0.000129,2]
[344721628,1733739034096,-15329.48905565,0.000129,2]
[344721629,1733739034106,-1041.94490833,0.00012961,2]
[344721630,1733739034117,-586.09401094,0.00012961,2]
[344721631,1733739034128,-2706.02284462,0.00012962,2]
[344721632,1733739034138,-859.10335901,0.00012962,2]
[344721633,1733739034148,-1522.1378501,0.00012962,2]
[344721634,1733739034158,-22766.67188614,0.00012962,2]
[344721635,1733739034167,-200.0,0.00012963,2]
[344721636,1733739034177,-1141.60338757,0.00012963,2]
[344721637,1733739034187,-50674.94444158,0.00012963,2]
[344721638,1733739034201,-2001.22291873,0.00012963,2]
[344721643,1733739038322,-5761.15533875,0.00012963,2]
[344721644,1733739038331,-6532.46106588,0.00012963,2]
[344721645,1733739038342,-829.7753899,0.00012963,2]
[344721646,1733739038437,-504.68471166,0.00012963,2]
[344721647,1733739038449,-1792.5849076,0.00012963,2]
[344721648,1733739038566,-1721.91227889,0.00012963,2]
[344721660,1733739040362,-9616.14297476,0.00012963,2]
[344721661,1733739040374,-9858.2,0.00012963,2]
[344721662,1733739040386,-73032.81235853,0.00012963,2]
[344721663,1733739040395,-1389.25987778,0.00012963,2]
[344721664,1733739040405,-200.0,0.00012963,2]
[344721665,1733739040415,-781.45868125,0.00012964,2]
[344721666,1733739040424,-200.0,0.00012964,2]
[344721667,1733739040434,-200.0,0.00012964,2]
[344721668,1733739040443,-483.24563944,0.00012964,2]
[344721669,1733739040453,-200.0,0.00012965,2]
[344721670,1733739040462,-644.32751925,0.00012965,2]
[344721671,1733739040472,-2036.39314727,0.00012965,2]
[344721672,1733739040481,-247.25841086,0.00012965,2]
[344721673,1733739040491,-200.0,0.00012965,2]
[344721674,1733739040500,-200.0,0.00012965,2]
[344721675,1733739040509,-439.5705082,0.00012965,2]
[344721676,1733739040519,-361.21044685,0.00012966,2]
[344721677,1733739040529,-270.90783514,0.00012966,2]
[344721678,1733739040539,-203.18087635,0.00012966,2]
[344721679,1733739040548,-642.15190551,0.00012967,2]
[344721680,1733739040558,-1527.29486046,0.00012967,2]
[344721681,1733739040567,-270.90783514,0.00012967,2]
[344721682,1733739040578,-781.45868125,0.00012967,2]
[344721683,1733739040588,-481.61392913,0.00012967,2]
[344721684,1733739040598,-200.0,0.00012968,2]
[344721685,1733739040608,-200.0,0.00012968,2]
[344721686,1733739040620,-200.0,0.00012968,2]
[344721687,1733739040629,-644.32751925,0.00012968,2]
[344721688,1733739040639,-781.45868125,0.00012968,2]
[344721689,1733739040649,-1522.1378501,0.00012968,2]
[344721690,1733739040658,-200.0,0.00012969,2]
[344721691,1733739040668,-1041.94490833,0.00012969,2]
[344721692,1733739040678,-200.0,0.00012969,2]
[344721693,1733739040688,-439.5705082,0.00012969,2]
[344721694,1733739040698,-329.67788115,0.00012969,2]
[344721695,1733739040707,-200.0,0.0001297,2]
[344721696,1733739040717,-586.09401094,0.0001297,2]
[344721697,1733739040727,-500.0,0.0001297,2]
[344721698,1733739040737,-1145.47114534,0.0001297,2]
[344721699,1733739040747,-1141.60338757,0.0001297,2]
[344721700,1733739040758,-200.0,0.00012971,2]
[344721701,1733739040767,-781.45868125,0.00012971,2]
[344721703,1733739040777,-270.90783514,0.00012971,2]
[344721704,1733739040787,-361.21044685,0.00012971,2]
[344721705,1733739040797,-2706.02284462,0.00012971,2]
[344721706,1733739040807,-200.0,0.00012971,2]
[344721707,1733739040817,-200.0,0.00012971,2]
[344721708,1733739040826,-1155.0617876,0.00012972,2]
[344721709,1733739040840,-699.17852334,0.00012972,2]
[344721710,1733739040851,-1192.94815688,0.00012972,2]
[344721711,1733739040865,-293.987,0.00012972,2]
[344721712,1733739040878,-776.9,0.00012972,2]
[344721713,1733739040890,-13822.2,0.00012972,2]
[344721714,1733739040902,-294.0,0.00012972,2]
[344721715,1733739040916,-479.81693633,0.00012972,2]
[344721716,1733739040927,-4052.57948199,0.00012972,2]
[344721717,1733739040936,-1141.60338757,0.00012972,2]
[344721718,1733739040946,-200.0,0.00012972,2]
[344721719,1733739040957,-200.0,0.00012972,2]
[344721720,1733739040966,-200.0,0.00012972,2]
[344721721,1733739040976,-1145.47114534,0.00012972,2]
[344721722,1733739040986,-18580.20468019,0.00012972,2]
[344721723,1733739040998,-3344.47471623,0.00012972,2]
[344721724,1733739041010,-841.99248972,0.00012972,2]
[344721725,1733739041019,-200.0,0.00012972,2]
[344721726,1733739041028,-200.0,0.00012972,2]
[344721727,1733739041038,-8953.00567013,0.00012972,2]
[344721731,1733739043346,-554.42899998,0.00012972,2]
[344721732,1733739043430,-3939.52,0.00012972,2]
[344721733,1733739043575,-3995.10000001,0.00012972,2]
[344721734,1733739043586,-1384.4600612,0.00012972,2]
[344721735,1733739043714,-1569.24699201,0.00012972,2]
[344721736,1733739043797,-5241.85487493,0.00012972,2]
[344721737,1733739043808,-4981.45,0.00012972,2]
[344721738,1733739043820,-593.74805845,0.00012972,2]
[344721739,1733739043833,-1937.44512418,0.00012972,2]
[344721882,1733739046510,-300.237508,0.00012972,2]
[344721883,1733739046522,-336.41707014,0.00012972,2]
[344721884,1733739046534,-24650.40834003,0.00012972,2]
[344721885,1733739046543,-439.5705082,0.00012973,2]
[344721886,1733739046553,-103888.57368722,0.00012973,2]
[344721887,1733739046562,-286.73871293,0.00012973,2]
[344721888,1733739046571,-200.0,0.00012973,2]
[344721889,1733739046581,-642.15190551,0.00012973,2]
[344721890,1733739046591,-200.0,0.00012974,2]
[344721891,1733739046600,-439.5705082,0.00012974,2]
[344721892,1733739046610,-200.0,0.00012974,2]
[344721893,1733739046623,-200.0,0.00012974,2]
[344721894,1733739046633,-483.24563944,0.00012974,2]
[344721895,1733739046643,-200.0,0.00012975,2]
[344721896,1733739046652,-1389.25987778,0.00012975,2]
[344721897,1733739046662,-200.0,0.00012975,2]
[344721898,1733739046672,-361.21044685,0.00012975,2]
[344721899,1733739046681,-642.15190551,0.00012975,2]
[344721900,1733739046692,-200.0,0.00012975,2]
[344721901,1733739046702,-1389.25987778,0.00012976,2]
[344721902,1733739046711,-84724.37469064,0.00012976,2]
[344721903,1733739046723,-19164.19899658,0.00012976,2]
[344721904,1733739046732,-2029.51713346,0.00012976,2]
[344721905,1733739046742,-203.18087635,0.00012976,2]
[344721906,1733739046752,-200.0,0.00012977,2]
[344721907,1733739046761,-481.61392913,0.00012977,2]
[344721908,1733739046772,-247.25841086,0.00012978,2]
[344721909,1733739046782,-644.32751925,0.00012978,2]
[344721910,1733739046791,-2036.39314727,0.00012978,2]
[344721911,1733739046801,-200.0,0.00012978,2]
[344721912,1733739046810,-270.90783514,0.00012978,2]
[344721913,1733739046820,-1522.1378501,0.00012978,2]
[344721914,1733739046831,-200.0,0.00012978,2]
[344721915,1733739046841,-200.0,0.00012978,2]
[344721916,1733739046852,-247.25841086,0.00012979,2]
[344721917,1733739046862,-1141.60338757,0.00012979,2]
[344721918,1733739046876,-483.24563944,0.00012979,2]
[344721919,1733739046886,-1527.29486046,0.00012979,2]
[344721920,1733739046895,-2029.51713346,0.00012979,2]
[344721921,1733739046905,-1389.25987778,0.00012979,2]
[344721922,1733739046917,-2029.51713346,0.0001298,2]
[344721923,1733739046927,-481.61392913,0.0001298,2]
[344721924,1733739046937,-1145.47114534,0.0001298,2]
[344721925,1733739046947,-781.45868125,0.0001298,2]
[344721926,1733739046957,-2029.51713346,0.00012981,2]
[344721927,1733739046967,-200.0,0.00012981,2]
[344721928,1733739046976,-203.18087635,0.00012981,2]
[344721929,1733739046986,-1522.1378501,0.00012981,2]
[344721930,1733739046998,-439.5705082,0.00012981,2]
[344721931,1733739047008,-200.0,0.00012981,2]
[344721932,1733739047018,-642.15190551,0.00012982,2]
[344721933,1733739047027,-203.18087635,0.00012982,2]
[344721934,1733739047037,-22766.67188614,0.00012982,2]
[344721935,1733739047046,-481.61392913,0.00012982,2]
[344721936,1733739047055,-329.67788115,0.00012982,2]
[344721937,1733739047064,-1852.3465037,0.00012983,2]
[344721938,1733739047073,-1389.25987778,0.00012983,2]
[344721939,1733739047083,-247.25841086,0.00012983,2]
[344721940,1733739047092,-200.0,0.00012983,2]
[344721941,1733739047101,-1852.3465037,0.00012983,2]
[344721942,1733739047110,-200.0,0.00012983,2]
[344721943,1733739047122,-1527.29486046,0.00012983,2]
[344721944,1733739047132,-58437.32269906,0.00012983,2]
[344721945,1733739047346,-200.0,0.00012984,2]
[344721946,1733739047356,-22766.67188614,0.00012984,2]
[344721947,1733739047368,-586.09401094,0.00012984,2]
[344721948,1733739047377,-200.0,0.00012984,2]
[344721949,1733739047386,-439.5705082,0.00012984,2]
[344721950,1733739047395,-481.61392913,0.00012984,2]
[344721951,1733739047405,-586.09401094,0.00012984,2]
[344721952,1733739047414,-200.0,0.00012984,2]
[344721953,1733739047423,-200.0,0.00012985,2]
[344721954,1733739047432,-856.20254068,0.00012985,2]
[344721955,1733739047442,-77916.43026542,0.00012985,2]